bitfinex/quotes_ETHUSD_20250323
["timestamp","ask_amount","ask_price","bid_price","bid_amount"]
[1742753000242,1.78673022,1995.4,1995.2,0.55]
[1742753000776,1.78673022,1995.5,1995.3,5.80325]
[1742753001057,5.01104,1995.6,1995.3,0.7915]
[1742753001058,7.98694971,1995.6,1995.3,0.7915]
[1742753002368,5.01104,1995.6,1995.3,0.7915]
[1742753002543,7.98694971,1995.6,1995.3,0.7915]
[1742753003753,12.99814971,1995.6,1995.3,0.7915]
[1742753003956,7.98694971,1995.6,1995.3,0.7915]
[1742753004255,7.98669971,1995.7,1995.4,0.55]
[1742753004757,2.97590971,1995.6,1995.4,0.55]
[1742753004941,5.0113,1995.5,1995.3,0.7915]
[1742753005145,5.01177,1995.3,1995.2,0.55]
[1742753005345,5.01202,1995.2,1995.1,26.507]
[1742753005550,7.98792971,1995.2,1995.1,26.507]
[1742753008926,13.00014971,1995.2,1995.0,4.742]
[1742753009666,5.01228,1995.1,1995.0,5.292]
[1742753011745,5.01253,1995.0,1994.8,26.505]
[1742753011948,7.98843971,1995.0,1994.8,26.505]
[1742753012130,5.01253,1995.0,1994.8,26.505]
[1742753012332,2.97590971,1995.1,1995.0,0.7938]
[1742753012531,2.97590971,1995.1,1995.0,1.3438]
[1742753024975,1.78616036,1995.1,1995.0,1.3438]
[1742753025288,1.78616036,1995.3,1995.2,0.55]
[1742753025479,1.78616036,1995.3,1995.1,4.741]
[1742753025689,1.78616036,1995.2,1995.1,5.795725]
[1742753026804,1.78616036,1995.3,1995.1,10.807895]
[1742753027102,1.78616036,1995.2,1995.1,10.807895]
[1742753027604,1.78616036,1995.2,1995.1,11.357895]
[1742753027803,1.78616036,1995.3,1995.1,11.357895]
[1742753028003,1.78616036,1995.3,1995.2,1.1357895]
[1742753028205,5.01154,1995.4,1995.2,1.1357895]
[1742753028378,1.78616036,1995.3,1995.2,1.1357895]
[1742753029375,5.01134,1995.5,1995.2,1.1357895]
[1742753029575,1.78616036,1995.3,1995.2,1.1357895]
[1742753031375,1.78616036,1995.3,1995.1,11.357895]
[1742753031704,1.78616036,1995.2,1995.1,11.357895]
[1742753031909,1.78616036,1995.2,1995.1,6.345725]
[1742753035075,1.78616036,1995.2,1995.1,5.291]
[1742753037219,1.78616036,1995.3,1995.1,5.291]
[1742753038309,1.78616036,1995.2,1995.1,5.291]
[1742753039019,1.78616036,1995.3,1995.1,5.291]
[1742753041514,6.79799036,1995.3,1995.1,5.291]
[1742753041714,1.78616036,1995.2,1995.1,5.291]
[1742753044121,5.01154,1995.4,1995.1,5.291]
[1742753044122,1.78616036,1995.3,1995.1,5.291]
[1742753044923,1.78616036,1995.2,1995.1,5.291]
[1742753047528,6.79819036,1995.2,1995.0,26.504]
[1742753047729,1.78616036,1995.1,1995.0,26.504]
[1742753049533,5.01203,1995.2,1995.0,26.504]
[1742753049723,1.78616036,1995.3,1995.1,0.55]
[1742753049902,1.78616036,1995.3,1995.1,6.39538]
[1742753051731,5.01104,1995.6,1995.2,5.01185]
[1742753052039,1.78616036,1995.4,1995.2,5.01185]
[1742753052222,1.78616036,1995.4,1995.2,6.152582]
[1742753052946,1.78616036,1995.5,1995.2,6.152582]
[1742753054448,1.78616036,1995.4,1995.2,6.152582]
[1742753054656,1.78616036,1995.5,1995.2,6.152582]
[1742753054825,1.78616036,1995.4,1995.2,6.152582]
[1742753055350,1.78616036,1995.5,1995.2,6.152582]
[1742753062259,1.78616036,1995.5,1995.1,32.89747]
[1742753062260,1.78616036,1995.3,1995.1,32.89747]
[1742753062454,1.78616036,1995.4,1995.1,32.89747]
[1742753062964,1.78616036,1995.4,1995.1,32.8973]
[1742753063119,1.78616036,1995.5,1995.1,32.8973]
[1742753063521,1.78616036,1995.5,1995.2,5.01198]
[1742753064962,1.78616036,1995.4,1995.1,32.8973]
[1742753065326,1.78616036,1995.4,1995.1,32.0641]
[1742753065537,1.78616036,1995.3,1995.1,32.0641]
[1742753065741,1.78616036,1995.4,1995.1,37.07624]
[1742753065947,1.78616036,1995.4,1995.2,5.01187]
[1742753066251,1.78616036,1995.5,1995.2,5.76477]
[1742753067534,5.01054,1995.8,1995.4,0.55]
[1742753067739,1.78616036,1995.8,1995.5,5.01107]
[1742753068060,6.79669036,1995.8,1995.5,5.01107]
[1742753068263,1.78616036,1995.7,1995.5,5.01107]
[1742753069632,1.78616036,1995.9,1995.6,5.01084]
[1742753069836,5.01015,1996.0,1995.6,5.01084]
[1742753069837,1.78616036,1995.8,1995.6,5.01084]
[1742753071368,1.78616036,1995.8,1995.5,5.642627]
[1742753071862,1.78616036,1995.7,1995.5,5.642627]
[1742753072371,1.78616036,1995.8,1995.5,5.642547]
[1742753072746,1.78616036,1995.8,1995.6,0.7529]
[1742753073469,1.78616036,1995.8,1995.6,5.76392]
[1742753075478,1.78616036,1996.8,1995.7,5.287]
[1742753075661,1.78616036,1996.1,1995.9,5.01007]
[1742753077487,1.78616036,1996.0,1995.8,5.80745]
[1742753077695,1.78616036,1996.0,1995.9,0.55]
[1742753077849,1.78616036,1996.1,1995.9,5.56018]
[1742753079646,1.78616036,1996.0,1995.9,5.56018]
[1742753080051,1.78616036,1996.0,1995.9,0.55]
[1742753081670,1.78616036,1996.0,1995.9,5.56027]
[1742753081859,1.78616036,1996.0,1995.9,6.697033]
[1742753084286,1.78616036,1996.0,1995.9,1.686763]
[1742753084492,1.78616036,1996.0,1995.9,0.55]
[1742753084784,1.78616036,1996.0,1995.8,4.736]
[1742753084948,1.78616036,1995.9,1995.7,0.55]
[1742753085147,1.78616036,1995.8,1995.7,0.55]
[1742753086150,1.78616036,1995.8,1995.7,5.286]
[1742753086351,1.78616036,1995.8,1995.7,10.29677]
[1742753088385,1.78616036,1995.8,1995.7,11.90723]
[1742753089189,3.57232072,1995.8,1994.9,0.7511]
[1742753089483,5.01016,1996.0,1994.7,26.494]
[1742753089484,8.58490072,1995.0,1994.7,26.494]
[1742753089693,1.78616036,1994.8,1994.7,26.494]
[1742753090785,5.01288,1994.9,1994.7,26.494]
[1742753090993,1.78616036,1994.8,1994.7,26.494]
[1742753092874,2.97819275,1994.8,1994.7,26.494]
[1742753093995,7.99122275,1994.8,1994.7,26.494]
[1742753100886,5.01337,1994.7,1994.4,31.24]
[1742753101073,2.97819275,1994.6,1994.4,31.24]
[1742753103151,7.99172275,1994.6,1994.4,26.503]
[1742753103273,5.01378,1994.5,1994.4,26.503]
[1742753103674,5.01416,1994.4,1994.2,31.243]
[1742753103909,2.97819275,1994.3,1994.2,31.243]
[1742753104712,7.99248275,1994.3,1994.2,26.506]
[1742753104911,8.45288275,1994.3,1994.2,26.506]
[1742753105608,8.82864164,1994.3,1994.2,26.506]
[1742753105771,8.45288275,1994.3,1994.2,26.506]
[1742753120127,5.01493,1994.1,1993.7,37.06465]
[1742753120325,2.97819275,1993.9,1993.7,37.06465]
[1742753120631,2.97819275,1993.9,1993.7,41.327717]
[1742753125236,7.99359275,1993.9,1993.7,36.311967]
[1742753125419,7.99359275,1993.9,1993.7,32.0489]
[1742753125731,2.97819275,1993.8,1993.7,26.517]
[1742753125907,7.99373275,1993.8,1993.7,26.517]
[1742753127832,8.45413275,1993.8,1993.7,26.517]
[1742753128563,8.83435128,1993.8,1993.7,26.517]
[1742753131830,9.12837148,1993.8,1993.7,26.517]
[1742753134691,5.01606,1993.6,1993.3,0.8166]
[1742753134876,7.99425275,1993.6,1993.3,0.8166]
[1742753135028,0.28742687,1993.5,1993.3,0.8166]
[1742753137672,5.30372687,1993.5,1993.3,0.8166]
[1742753139378,0.28742687,1993.5,1993.3,0.8166]
[1742753139877,0.28742687,1993.5,1993.3,5.83337]
[1742753141178,0.28742687,1993.5,1993.3,0.8166]
[1742753142689,0.28742687,1993.5,1993.3,5.8334]
[1742753143884,0.28742687,1993.5,1993.3,0.8166]
[1742753146889,2.07656479,1993.5,1993.3,0.8166]
[1742753150194,2.07656479,1993.5,1993.3,5.83337]
[1742753151093,0.28742687,1993.5,1993.4,6.34375]
[1742753151264,0.28742687,1993.5,1993.4,8.13288792]
[1742753151464,1.78913792,1993.9,1993.8,0.7772]
[1742753151899,2.07586043,1993.9,1993.8,0.7772]
[1742753152219,2.07603484,1993.9,1993.6,10.53222]
[1742753152422,1.78913792,1993.8,1993.6,10.53222]
[1742753152927,0.28602376,1993.7,1993.6,10.53222]
[1742753153262,2.98106896,1993.9,1993.6,10.53222]
[1742753153504,0.28602376,1993.7,1993.6,10.53222]
[1742753153715,7.99469896,1994.6,1994.2,5.79165]
[1742753153910,7.99469896,1994.6,1994.2,0.7772]
[1742753154223,13.38321649,1994.6,1994.2,5.79173]
[1742753154572,8.36957649,1994.6,1994.2,5.79173]
[1742753154778,6.40446888,1994.7,1994.2,5.8416932]
[1742753154982,9.38553784,1994.7,1994.3,5.01428]
[1742753155185,8.37388344,1994.7,1994.3,5.01428]
[1742753156084,7.99440896,1994.7,1994.3,5.01428]
[1742753157104,7.99440896,1994.7,1994.3,6.094863]
[1742753157721,2.98106896,1994.8,1994.5,5.79094]
[1742753157888,0.4604,1995.1,1994.7,5.01316]
[1742753158226,0.26814397,1995.0,1994.7,5.01316]
[1742753159627,0.26814397,1995.0,1994.7,5.0131]
[1742753159826,0.26814397,1995.0,1994.7,6.489562]
[1742753160028,8.26175293,1995.0,1994.5,1.3272]
[1742753160201,2.98106896,1994.6,1994.4,4.737]
[1742753160525,7.99465896,1994.6,1994.4,4.737]
[1742753160704,5.28097244,1994.5,1994.4,4.737]
[1742753161916,0.26719244,1994.5,1994.4,4.737]
[1742753162932,0.26719244,1994.5,1994.2,5.01453]
[1742753163227,5.01408,1994.4,1994.1,0.7772]
[1742753163429,5.0143,1994.3,1994.0,26.525]
[1742753163642,5.27990062,1994.3,1994.0,26.525]
[1742753165407,5.01454,1994.2,1994.0,26.525]
[1742753165611,0.26481957,1994.1,1994.0,26.525]
[1742753166047,7.99560896,1994.2,1994.0,26.525]
[1742753166344,0.26481957,1994.1,1994.0,26.525]
[1742753167142,7.99560896,1994.2,1994.0,26.525]
[1742753167447,0.2646004,1994.1,1994.0,26.525]
[1742753167624,7.99560896,1994.2,1994.0,26.525]
[1742753167820,0.2646004,1994.1,1994.0,26.525]
[1742753168026,0.2646004,1994.1,1994.0,29.11182581]
[1742753168329,8.83176814,1994.4,1994.0,29.91842581]
[1742753168534,0.26533254,1994.1,1994.0,34.93339581]
[1742753168745,0.26533254,1994.1,1994.0,29.91842581]
[1742753169110,5.01431,1994.3,1994.0,29.91842581]
[1742753169336,0.26533254,1994.1,1994.0,29.91842581]
[1742753169611,0.26533254,1994.1,1994.0,34.93346581]
[1742753169816,8.37135814,1994.4,1994.0,34.93346581]
[1742753170145,5.01433,1994.3,1994.0,27.3316]
[1742753170522,0.26572305,1994.2,1994.0,27.3316]
[1742753171352,0.26572305,1994.2,1994.0,26.525]
[1742753172548,0.26572305,1994.2,1994.0,32.3465]
[1742753172750,0.26572305,1994.2,1994.1,5.01479]
[1742753172956,11.45513896,1994.6,1994.1,9.224619]
[1742753173354,0.26241152,1994.5,1994.1,9.224619]
[1742753173552,0.26241152,1994.5,1994.1,14.239259]
[1742753175159,0.26241152,1994.5,1994.2,5.01451]
[1742753175930,0.26241152,1994.5,1994.3,0.8066]
[1742753177367,5.27622152,1994.5,1994.3,0.8066]
[1742753177567,5.73662152,1994.5,1994.1,5.5426]
[1742753177736,5.01407,1994.4,1994.1,5.5426]
[1742753177933,0.2616307,1994.3,1994.1,5.5426]
[1742753178264,0.2616307,1994.3,1994.1,9.250863]
[1742753178666,0.2616307,1994.3,1994.2,5.01454]
[1742753179070,5.01357,1994.6,1994.2,10.02888]
[1742753179238,0.2616307,1994.3,1994.2,10.02888]
[1742753179439,5.01357,1994.6,1994.2,10.02888]
[1742753179644,0.2616307,1994.3,1994.2,6.9423143]
[1742753179842,5.01357,1994.6,1994.2,6.9423143]
[1742753180062,0.2616307,1994.3,1994.2,6.9423143]
[1742753180270,5.01357,1994.6,1994.2,11.9567243]
[1742753180743,5.01357,1994.6,1994.4,0.8033]
[1742753180942,0.26241152,1994.5,1994.4,0.8033]
[1742753182083,13.00808896,1994.7,1994.4,0.8033]
[1742753182301,0.26241152,1994.5,1994.4,0.8033]
[1742753182590,13.00808896,1994.7,1994.4,0.8033]
[1742753183088,0.26348145,1994.6,1994.4,0.8033]
[1742753183285,13.00808896,1994.7,1994.4,0.8033]
[1742753183454,0.2630911,1994.5,1994.4,0.8033]
[1742753183650,13.00808896,1994.7,1994.4,0.8033]
[1742753183850,0.2630911,1994.5,1994.4,0.8033]
[1742753184179,0.26313502,1994.5,1994.4,0.8033]
[1742753185451,5.27702502,1994.5,1994.2,0.8033]
[1742753187465,5.01474,1994.2,1994.0,26.525]
[1742753187857,5.27329212,1994.1,1994.0,26.525]
[1742753188992,8.25436108,1994.1,1994.0,26.525]
[1742753192972,5.27329212,1994.1,1994.0,26.525]
[1742753194858,8.25436108,1994.1,1994.0,26.525]
[1742753195404,0.25850212,1994.1,1994.0,26.525]
[1742753195561,0.25850212,1994.1,1994.0,27.2757]
[1742753195889,0.25628742,1994.1,1994.0,27.2757]
[1742753196096,5.0143,1994.3,1994.0,27.2757]
[1742753196299,5.0143,1994.3,1993.7,4.736]
[1742753196300,0.71687086,1994.1,1993.6,0.7507]
[1742753196460,5.01598,1993.7,1993.4,26.517]
[1742753196656,5.01615,1993.6,1993.4,26.517]
[1742753196858,5.27059085,1993.6,1993.4,26.517]
[1742753197084,5.0163,1993.5,1993.4,26.517]
[1742753197277,5.27030605,1993.5,1993.4,26.517]
[1742753197517,0.25400605,1993.5,1993.4,26.517]
[1742753198307,5.27030605,1993.5,1993.4,26.517]
[1742753199131,0.25400605,1993.5,1993.4,26.517]
[1742753199497,5.27030605,1993.5,1993.4,26.517]
[1742753201126,0.25400605,1993.5,1993.4,26.517]
[1742753201342,0.25400605,1993.5,1993.4,27.2677]
[1742753201502,8.45714896,1993.8,1993.4,34.93595]
[1742753201503,7.99661896,1993.8,1993.4,34.93595]
[1742753201708,0.25328629,1993.5,1993.4,32.28425]
[1742753201916,5.01555,1993.8,1993.4,32.28425]
[1742753202113,5.01555,1993.8,1993.4,37.02025]
[1742753202316,0.25336601,1993.7,1993.4,37.02025]
[1742753203596,0.25336601,1993.7,1993.4,42.0366]
[1742753203797,5.01555,1993.8,1993.5,5.0163]
[1742753203998,0.25354953,1993.7,1993.5,5.0163]
[1742753204839,5.01555,1993.8,1993.4,41.22391]
[1742753204994,0.25327424,1993.7,1993.4,41.22391]
[1742753205199,5.01555,1993.8,1993.4,41.22391]
[1742753205400,0.25336601,1993.7,1993.4,41.22391]
[1742753205701,5.01555,1993.8,1993.4,46.24029]
[1742753205894,5.01532,1993.9,1993.4,41.22374]
[1742753206128,0.25336601,1993.7,1993.5,5.01621]
[1742753206401,5.01532,1993.9,1993.5,5.01621]
[1742753206402,0.25297511,1993.6,1993.5,14.656315]
[1742753206600,5.01532,1993.9,1993.5,15.417015]
[1742753206898,0.25375687,1993.8,1993.5,15.417015]
[1742753207098,5.01532,1993.9,1993.6,5.01604]
[1742753207300,0.25224734,1993.7,1993.6,5.01604]
[1742753207503,5.3825881,1994.0,1993.6,5.01604]
[1742753207706,0.25224734,1993.7,1993.6,5.01604]
[1742753207941,10.0303,1994.0,1993.6,5.01604]
[1742753208128,0.25224734,1993.7,1993.6,5.01604]
[1742753208740,10.0303,1994.0,1993.6,5.01604]
[1742753208937,0.25224734,1993.7,1993.6,5.01604]
[1742753209439,10.0303,1994.0,1993.6,5.01604]
[1742753209644,5.26832902,1993.9,1993.6,5.01604]
[1742753210009,5.26832902,1993.9,1993.5,15.417005]
[1742753210741,5.26832902,1993.9,1993.5,10.400805]
[1742753211242,5.26832902,1993.9,1993.5,15.416905]
[1742753211939,5.26832902,1993.9,1993.5,10.400795]
[1742753212833,5.26832902,1993.9,1993.5,15.416915]
[1742753213142,5.26832902,1993.9,1993.5,15.416955]
[1742753214841,5.26832902,1993.9,1993.5,10.400795]
[1742753216453,5.26832902,1993.9,1993.5,15.416905]
[1742753216856,5.26832902,1993.9,1993.6,5.01604]
[1742753217157,5.26832902,1993.9,1993.8,5.83644]
[1742753217158,0.25302902,1993.9,1993.8,5.83644]
[1742753217324,10.02933,1994.2,1993.8,5.83644]
[1742753217523,0.25363937,1993.9,1993.8,0.8209]
[1742753217744,10.02981,1994.1,1993.8,0.8209]
[1742753217948,0.25363937,1993.9,1993.8,0.8209]
[1742753218130,10.02981,1994.1,1993.8,0.8209]
[1742753218330,0.25363937,1993.9,1993.8,0.8209]
[1742753218716,10.02981,1994.1,1993.8,0.8209]
[1742753218932,0.25363937,1993.9,1993.8,0.8209]
[1742753219245,10.02981,1994.1,1993.8,0.8209]
[1742753219448,0.25363937,1993.9,1993.8,0.8209]
[1742753219623,10.02981,1994.1,1993.8,0.8209]
[1742753219825,0.25363937,1993.9,1993.8,0.8209]
[1742753220235,5.01483,1994.1,1993.8,0.8209]
[1742753220637,0.25403016,1994.0,1993.8,0.8209]
[1742753221963,0.25403016,1994.0,1993.8,5.5569]
[1742753222583,0.25403016,1994.0,1993.8,10.57243]
[1742753223172,0.25403016,1994.0,1993.8,10.57236]
[1742753223379,0.25403016,1994.0,1993.8,12.131165]
[1742753223581,8.45577896,1994.3,1993.8,12.131165]
[1742753223980,0.25538194,1994.2,1993.8,12.131165]
[1742753224480,5.26996194,1994.2,1993.9,5.01529]
[1742753227778,0.25538194,1994.2,1994.0,5.01501]
[1742753228079,0.25538194,1994.2,1994.1,5.78299]
[1742753228280,0.25538194,1994.2,1994.1,6.33299]
[1742753228455,5.47456,1994.4,1994.0,5.01501]
[1742753228674,0.25643866,1994.3,1994.0,5.0149]
[1742753229691,5.47456,1994.4,1994.0,5.0149]
[1742753230191,0.25678553,1994.3,1994.1,0.55]
[1742753230361,0.25678553,1994.3,1994.1,5.56479]
[1742753230566,5.47456,1994.4,1994.1,5.56479]
[1742753230764,0.25639487,1994.2,1994.1,0.55]
[1742753230966,5.47456,1994.4,1994.1,0.55]
[1742753231370,0.25678553,1994.3,1994.1,0.55]
[1742753236634,3.23785449,1994.3,1993.9,5.78342]
[1742753236838,5.01522,1994.0,1993.8,26.522]
[1742753236985,7.99635896,1993.9,1993.8,26.522]
[1742753237190,8.71114934,1993.9,1993.8,26.522]
[1742753237544,5.01615,1993.6,1993.3,5.5032]
[1742753237685,5.01615,1993.6,1993.3,9.20637643]
[1742753237890,0.25339445,1993.5,1993.3,9.20637643]
[1742753238232,0.25339445,1993.5,1993.3,10.57005372]
[1742753238426,0.25339445,1993.5,1993.4,5.01655]
[1742753238712,5.47538,1994.1,1993.6,5.84905]
[1742753238913,0.4604,1994.3,1993.9,5.01527]
[1742753239120,5.01439,1994.3,1993.9,9.75027]
[1742753239289,5.01439,1994.3,1993.9,14.76537]
[1742753239489,5.01417,1994.4,1994.0,5.56494]
[1742753239818,5.01379,1994.5,1994.1,5.84785]
[1742753240000,5.01379,1994.5,1994.1,5.89799242]
[1742753240199,5.01379,1994.5,1994.1,5.84785]
[1742753240919,5.01376,1994.6,1994.1,5.84771]
[1742753241109,5.01376,1994.6,1994.2,5.599251]
[1742753241311,5.01376,1994.6,1994.3,4.735]
[1742753243299,10.0275,1994.6,1994.3,4.735]
[1742753243797,5.01374,1994.6,1994.3,4.735]
[1742753244814,10.02748,1994.6,1994.3,4.735]
[1742753245531,5.01384,1994.5,1994.3,4.735]
[1742753246530,5.01333,1994.7,1994.3,9.74927]
[1742753246731,5.01333,1994.7,1994.4,0.8331]
[1742753248044,0.2490781,1994.6,1994.4,0.8331]
[1742753248245,5.01333,1994.7,1994.4,0.8331]
[1742753248413,5.26269981,1994.6,1994.4,0.8331]
[1742753251943,0.24916981,1994.6,1994.5,5.01378]
[1742753252163,0.24916981,1994.6,1994.5,6.431568]
[1742753252357,5.01263,1995.0,1994.6,0.55]
[1742753252722,0.25378686,1994.9,1994.6,0.55]
[1742753252948,5.26662686,1994.9,1994.6,0.55]
[1742753253819,5.26662686,1994.9,1994.6,1.2481418]
[1742753254223,10.27954686,1994.9,1994.6,1.2481418]
[1742753254429,5.26662686,1994.9,1994.6,1.2481418]
[1742753256530,0.25378686,1994.9,1994.6,6.2616118]
[1742753258158,0.25378686,1994.9,1994.6,1.2481418]
[1742753258943,0.25378686,1994.9,1994.6,6.2615818]
[1742753259131,0.25378686,1994.9,1994.7,0.62615818]
[1742753259835,5.01229,1995.1,1994.8,0.8025]
[1742753260043,0.23362853,1995.0,1994.8,0.8025]
[1742753263853,0.23362853,1995.0,1994.9,5.01278]
[1742753264057,2.98106896,1995.2,1994.9,5.594308]
[1742753264257,0.22790822,1995.1,1994.9,5.594308]
[1742753264557,0.22790822,1995.1,1994.9,0.581528]
[1742753266239,5.98106896,1995.4,1995.0,5.01253]
[1742753266438,0.23062164,1995.3,1995.1,1.303753]
[1742753266684,5.01139,1995.5,1995.1,1.303753]
[1742753266846,0.23206532,1995.4,1995.1,1.303753]
[1742753267256,0.23206532,1995.4,1995.2,5.01198]
[1742753267467,7.99209896,1995.6,1995.2,5.01198]
[1742753267677,0.23236365,1995.5,1995.3,0.501198]
[1742753268582,0.23236365,1995.5,1995.4,0.8025]
[1742753268876,0.23218045,1995.5,1995.4,0.8025]
[1742753269083,13.00288896,1995.7,1995.4,0.8025]
[1742753269282,0.23266196,1995.6,1995.4,0.8025]
[1742753269448,5.01103,1995.6,1995.4,0.8025]
[1742753269641,0.23181403,1995.5,1995.4,0.8025]
[1742753270042,0.23181403,1995.5,1995.3,0.501198]
[1742753270852,5.24310403,1995.5,1995.3,0.501198]
[1742753271058,0.23181403,1995.5,1995.2,5.83268]
[1742753276855,0.23181403,1995.5,1995.2,10.84456]
[1742753277011,0.23181403,1995.5,1995.3,5.01175]
[1742753277200,0.23181403,1995.5,1995.2,5.83265]
[1742753279542,0.23181403,1995.5,1995.2,10.84458]
[1742753279744,0.23181403,1995.5,1995.3,1.084458]
[1742753281131,0.23181403,1995.5,1995.3,6.096198]
[1742753281953,0.23181403,1995.5,1995.3,1.084458]
[1742753283113,0.23181403,1995.5,1995.3,6.096218]
[1742753283942,7.99191896,1995.7,1995.3,6.096218]
[1742753284151,7.99191896,1995.7,1995.4,0.6096218]
[1742753284441,13.00287896,1995.7,1995.4,0.6096218]
[1742753284947,5.01106,1995.6,1995.4,0.6096218]
[1742753285748,10.02231,1995.6,1995.4,0.6096218]
[1742753285954,5.01127,1995.5,1995.3,1.084458]
[1742753286820,5.4715,1995.6,1995.3,1.084458]
[1742753287013,5.01129,1995.5,1995.3,1.084458]
[1742753287731,5.47149,1995.6,1995.3,1.084458]
[1742753288353,10.48269,1995.6,1995.3,1.084458]
[1742753288509,5.01133,1995.5,1995.3,1.084458]
[1742753289406,5.47218,1995.3,1995.1,31.237]
[1742753291757,5.01178,1995.3,1995.1,26.506]
[1742753293147,0.23253538,1995.2,1995.1,26.506]
[1742753294054,0.23253538,1995.2,1995.0,0.55]
[1742753295355,0.23253538,1995.2,1995.0,5.56241]
[1742753295940,0.23253538,1995.2,1995.0,7.093013]
[1742753296149,0.23253538,1995.2,1995.0,7.092973]
[1742753296325,0.23253538,1995.2,1995.0,7.848873]
[1742753296639,5.01155,1995.4,1995.0,12.861263]
[1742753296837,0.23232855,1995.1,1995.0,7.848873]
[1742753297013,5.01155,1995.4,1995.0,7.848873]
[1742753297215,0.23223692,1995.1,1995.0,6.31827]
[1742753297460,7.99218896,1995.6,1995.3,0.7559]
[1742753297849,5.24484324,1995.5,1995.2,5.01193]
[1742753301035,0.23356324,1995.5,1995.2,5.01193]
[1742753302548,5.24485324,1995.5,1995.2,5.01193]
[1742753302749,5.24485324,1995.5,1995.2,5.93936977]
[1742753302949,0.23356324,1995.5,1995.2,5.93936977]
[1742753303150,0.23356324,1995.5,1995.4,5.56152]
[1742753303779,5.4712,1995.7,1995.4,5.56152]
[1742753303951,0.23453934,1995.5,1995.4,5.56152]
[1742753304279,5.4712,1995.7,1995.4,1.579152]
[1742753304469,0.23371497,1995.5,1995.4,6.590672]
[1742753304684,8.36360109,1995.9,1995.5,5.01127]
[1742753304851,7.99144896,1995.9,1995.5,5.01127]
[1742753305051,0.23580041,1995.8,1995.5,5.01127]
[1742753305291,0.23580041,1995.8,1995.6,0.501127]
[1742753305602,0.23541062,1995.7,1995.6,0.501127]
[1742753306380,7.99144896,1995.9,1995.6,0.501127]
[1742753306585,0.23467794,1995.7,1995.5,5.01127]
[1742753306758,13.00192896,1995.9,1995.5,5.01127]
[1742753306953,0.23428808,1995.6,1995.5,5.01127]
[1742753307154,13.00192896,1995.9,1995.5,5.01127]
[1742753307401,0.23428808,1995.6,1995.5,5.01127]
[1742753307695,13.00192896,1995.9,1995.5,6.2489542]
[1742753307883,13.00192896,1995.9,1995.5,5.01127]
[1742753308082,0.23506777,1995.8,1995.5,5.01127]
[1742753308399,5.01038,1995.9,1995.5,5.01127]
[1742753308580,0.23513588,1995.7,1995.5,5.01127]
[1742753308780,5.01038,1995.9,1995.5,5.01127]
[1742753308967,0.23447127,1995.6,1995.5,9.4490542]
[1742753309289,5.01038,1995.9,1995.5,9.4490542]
[1742753309494,0.23447127,1995.6,1995.5,9.4490542]
[1742753309702,10.02086,1995.9,1995.5,9.4490542]
[1742753309849,0.23419648,1995.6,1995.5,9.4490542]
[1742753310196,0.4604,1996.2,1995.9,5.01015]
[1742753310501,8.45058896,1996.4,1995.9,5.01015]
[1742753310657,5.00937,1996.3,1995.9,5.01015]
[1742753310979,5.00937,1996.3,1996.0,0.7749]
[1742753311592,5.00912,1996.4,1996.0,5.7849]
[1742753311769,5.00912,1996.4,1996.0,6.864416]
[1742753313194,5.00912,1996.4,1996.1,0.55]
[1742753314302,12.99871896,1996.5,1996.1,0.55]
[1742753314505,5.00878,1996.5,1996.1,5.55971]
[1742753314803,2.98106896,1996.6,1996.2,5.8039]
[1742753314804,5.00858,1996.6,1996.2,5.8039]
[1742753314979,5.00858,1996.6,1996.2,6.43929]
[1742753315167,10.01729,1996.6,1996.2,11.16829]
[1742753316058,7.98933896,1996.7,1996.3,5.55915]
[1742753316301,5.00827,1996.7,1996.4,0.555915]
[1742753316711,5.00851,1996.6,1996.4,0.555915]
[1742753317018,10.01727,1996.6,1996.3,0.55]
[1742753317319,12.99833896,1996.6,1996.3,0.55]
[1742753317632,7.98957896,1996.6,1996.3,0.55]
[1742753317782,5.00885,1996.5,1996.3,0.55]
[1742753318108,7.99016896,1996.4,1996.2,4.729]
[1742753318309,5.00926,1996.3,1996.2,4.729]
[1742753318477,5.00954,1996.2,1995.8,0.7945]
[1742753318678,13.00135896,1996.0,1995.6,10.53341]
[1742753318877,13.00135896,1996.0,1995.6,0.7945]
[1742753318878,5.0103,1995.9,1995.6,0.7945]
[1742753319118,5.01077,1995.7,1995.6,4.728]
[1742753319474,5.0107,1995.8,1995.6,4.728]
[1742753319778,0.23170426,1995.7,1995.6,4.728]
[1742753321004,0.23170426,1995.7,1995.6,11.55632]
[1742753321503,5.00987,1996.1,1995.7,5.56073]
[1742753321819,0.23404096,1996.0,1995.7,5.56073]
[1742753322723,0.23404096,1996.0,1995.9,5.80477]
[1742753323026,5.0089,1996.5,1996.1,5.55965]
[1742753323316,0.23575397,1996.4,1996.2,4.728]
[1742753324437,7.99032896,1996.3,1996.1,26.495]
[1742753324595,5.00951,1996.2,1996.1,26.495]
[1742753324798,5.24416357,1996.2,1996.1,26.495]
[1742753325001,5.24416357,1996.2,1995.6,0.8157]
[1742753325002,5.01012,1996.0,1995.6,0.8157]
[1742753325309,0.23265273,1995.9,1995.6,5.82669]
[1742753325509,0.23265273,1995.9,1995.7,0.55]
[1742753325919,5.00977,1996.1,1995.7,0.55]
[1742753326110,0.23304276,1996.0,1995.7,0.55]
[1742753327025,0.23304276,1996.0,1995.7,5.56064]
[1742753327940,0.23304276,1996.0,1995.7,0.55]
[1742753328240,0.23304276,1996.0,1995.9,0.55]
[1742753328647,5.00964,1996.2,1995.9,0.55]
[1742753328943,5.00928,1996.3,1995.9,10.28827]
[1742753329115,0.23355953,1996.2,1995.9,10.28823]
[1742753329314,0.23355953,1996.2,1995.9,36.78323]
[1742753329510,0.23355953,1996.2,1995.9,41.044162]
[1742753329715,5.24309953,1996.2,1995.9,36.033932]
[1742753329934,0.23355953,1996.2,1995.9,31.773]
[1742753330133,0.23355953,1996.2,1996.1,0.55]